bitfinex/quotes_BTCUSD_20240810
["timestamp","ask_amount","ask_price","bid_price","bid_amount"]
[1723277089262,1.09947247,60955.0,60954.0,0.01534236]
[1723277089421,1.09947247,60955.0,60954.0,0.0169141]
[1723277089422,1.36515624,60955.0,60954.0,0.0169141]
[1723277089629,1.48209049,60955.0,60954.0,0.0169141]
[1723277090024,1.48210964,60955.0,60954.0,0.0099141]
[1723277090233,0.73827,60953.0,60952.0,0.0009141]
[1723277090435,1.29709445,60953.0,60952.0,0.0009141]
[1723277090641,1.24983264,60953.0,60952.0,0.0009141]
[1723277090905,1.27283264,60953.0,60952.0,0.0009141]
[1723277091117,1.27283264,60953.0,60921.0,0.01]
[1723277091118,0.90239,60949.0,60921.0,0.01]
[1723277091280,0.90239,60949.0,60920.0,0.01]
[1723277091281,0.082073,60921.0,60920.0,0.01]
[1723277091494,0.082071,60923.0,60920.0,0.01]
[1723277091690,0.16414,60924.0,60920.0,0.01766203]
[1723277091892,0.082072,60922.0,60920.0,0.01766203]
[1723277092050,0.082073,60921.0,60920.0,0.01766203]
[1723277092261,0.082073,60921.0,60920.0,0.00766203]
[1723277092262,0.410367,60921.0,60920.0,0.00766203]
[1723277092474,0.0621,60925.0,60917.0,0.01]
[1723277092673,0.0621,60925.0,60920.0,0.008]
[1723277092900,0.24622,60921.0,60920.0,0.005]
[1723277093102,0.082073,60921.0,60920.0,0.005]
[1723277093302,0.0621,60925.0,60920.0,0.01]
[1723277093579,0.082072,60922.0,60919.0,0.03]
[1723277094027,0.082072,60922.0,60920.0,0.001]
[1723277094223,0.082071,60923.0,60920.0,0.001]
[1723277094538,0.0641,60925.0,60920.0,0.001]
[1723277094691,0.082072,60922.0,60920.0,0.001]
[1723277094895,0.0641,60925.0,60920.0,0.001]
[1723277094896,0.082073,60921.0,60920.0,0.001]
[1723277095123,0.082074,60920.0,60919.0,0.01]
[1723277095323,0.082074,60920.0,60919.0,0.03]
[1723277095580,0.082073,60921.0,60920.0,0.001]
[1723277095724,0.082071,60923.0,60920.0,0.011]
[1723277095928,0.082074,60921.0,60919.0,0.01]
[1723277096133,0.082074,60920.0,60919.0,0.01]
[1723277096352,0.001,60920.0,60919.0,0.03]
[1723277096749,0.246212,60923.0,60922.0,0.01]
[1723277096910,0.082071,60923.0,60922.0,0.01]
[1723277098136,0.246212,60923.0,60922.0,0.01]
[1723277098925,0.082068,60925.0,60924.0,0.01]
[1723277099123,0.246204,60925.0,60924.0,0.01]
[1723277099567,0.24600655,60925.0,60924.0,0.01784473]
[1723277099970,0.24700655,60925.0,60924.0,0.01884473]
[1723277100204,0.08887055,60925.0,60924.0,0.01884473]
[1723277100807,0.25300655,60925.0,60924.0,0.01884473]
[1723277101761,0.007,60925.0,60924.0,0.01884473]
[1723277102005,0.007,60925.0,60924.0,0.03884473]
[1723277102740,0.006,60925.0,60924.0,0.03784473]
[1723277102973,0.0015,60932.0,60931.0,0.02]
[1723277103139,0.0015,60932.0,60931.0,0.0756]
[1723277103343,0.0015,60932.0,60931.0,0.34961308]
[1723277103544,0.0015,60932.0,60931.0,0.51373308]
[1723277103751,0.0015,60932.0,60931.0,0.59343308]
[1723277104324,0.0015,60932.0,60931.0,0.757248]
[1723277105011,0.0025,60932.0,60931.0,0.757248]
[1723277105213,0.0025,60932.0,60931.0,0.759248]
[1723277105470,0.0025,60932.0,60931.0,0.757248]
[1723277105805,0.0025,60932.0,60931.0,0.933368]
[1723277105984,0.0025,60932.0,60931.0,1.041368]
[1723277106418,0.0025,60932.0,60931.0,1.1654153]
[1723277106634,0.0015,60932.0,60931.0,1.1534153]
[1723277106830,0.0015,60932.0,60931.0,1.1634153]
[1723277107403,0.0025,60932.0,60931.0,1.1774153]
[1723277107816,0.0025,60932.0,60931.0,1.045368]
[1723277108006,0.0025,60932.0,60931.0,0.871248]
[1723277108394,0.0025,60932.0,60931.0,0.882248]
[1723277109978,0.003331,60932.0,60931.0,0.882248]
[1723277111549,0.003331,60932.0,60931.0,0.14253308]
[1723277111745,0.46062092,60932.0,60931.0,0.03283308]
[1723277111943,0.46062092,60932.0,60931.0,0.025]
[1723277111944,0.64773792,60932.0,60931.0,0.025]
[1723277112173,0.81185492,60932.0,60931.0,0.025]
[1723277112373,0.28392913,60932.0,60931.0,0.025]
[1723277112602,0.08206,60931.0,60930.0,0.01]
[1723277112771,0.002331,60932.0,60926.0,0.0769]
[1723277112772,0.002331,60932.0,60931.0,0.01]
[1723277112970,0.011331,60932.0,60931.0,0.012]
[1723277113221,0.011331,60932.0,60931.0,0.011]
[1723277113420,0.085389,60932.0,60931.0,0.011]
[1723277113572,0.011331,60932.0,60931.0,0.012]
[1723277113775,0.093389,60932.0,60931.0,0.032]
[1723277113978,0.085389,60932.0,60931.0,0.011]
[1723277114188,0.084389,60932.0,60931.0,0.01]
[1723277115046,0.248506,60932.0,60931.0,0.01]
[1723277115739,0.002331,60932.0,60931.0,0.03]
[1723277115910,0.005331,60932.0,60931.0,0.11206]
[1723277116121,0.010331,60932.0,60931.0,0.03]
[1723277117549,0.010331,60932.0,60931.0,0.18896]
[1723277118526,0.007331,60932.0,60931.0,0.18896]
[1723277118728,0.009331,60932.0,60931.0,0.18896]
[1723277119134,0.004331,60932.0,60931.0,0.18896]
[1723277119329,0.010331,60932.0,60931.0,0.18896]
[1723277119536,0.010331,60932.0,60931.0,0.35308]
[1723277119758,0.004331,60932.0,60931.0,0.5172]
[1723277119936,0.004331,60932.0,60931.0,0.5212]
[1723277120148,0.004331,60932.0,60931.0,0.35708]
[1723277120350,0.004331,60932.0,60931.0,0.35308]
[1723277120552,0.004331,60932.0,60931.0,0.35808]
[1723277120553,0.002331,60932.0,60931.0,0.35808]
[1723277121193,0.002331,60932.0,60931.0,0.36208]
[1723277121739,0.002331,60932.0,60931.0,0.35808]
[1723277122110,0.002331,60932.0,60931.0,0.36308]
[1723277130084,0.002331,60932.0,60931.0,0.35808]
[1723277130487,0.002331,60932.0,60931.0,0.35908]
[1723277131180,0.003331,60932.0,60931.0,0.36508]
[1723277131788,0.003331,60932.0,60931.0,0.37578839]
[1723277133206,0.003331,60932.0,60931.0,0.53990839]
[1723277133444,0.003331,60932.0,60931.0,0.67231781]
[1723277133584,0.003331,60932.0,60931.0,0.83613273]
[1723277134419,0.003331,60932.0,60931.0,1.06275273]
[1723277134593,0.003331,60932.0,60931.0,1.32687273]
[1723277134987,0.003331,60932.0,60931.0,1.33681262]
[1723277135654,0.002331,60932.0,60931.0,1.33081262]
[1723277135858,0.002331,60932.0,60931.0,1.32481262]
[1723277136035,0.003331,60932.0,60931.0,1.34781262]
[1723277136810,0.003331,60932.0,60931.0,1.35781262]
[1723277137005,0.003331,60932.0,60931.0,1.4155289]
[1723277137330,0.003331,60932.0,60931.0,1.78043346]
[1723277137524,0.003331,60932.0,60931.0,2.53408584]
[1723277138143,0.003331,60932.0,60931.0,2.36996584]
[1723277138344,0.003331,60932.0,60931.0,2.26731346]
[1723277138746,0.002331,60932.0,60931.0,2.25531346]
[1723277138948,0.002331,60932.0,60931.0,2.28031346]
[1723277139149,0.002331,60932.0,60931.0,2.44443346]
[1723277139347,0.002331,60932.0,60931.0,2.43043346]
[1723277139513,0.002331,60932.0,60931.0,2.43343346]
[1723277139714,0.002331,60932.0,60931.0,2.44743346]
[1723277140558,0.002331,60932.0,60931.0,2.27714043]
[1723277142087,0.002331,60932.0,60931.0,2.57307397]
[1723277142437,0.002331,60932.0,60931.0,2.62165378]
[1723277142635,0.49107874,60959.0,60955.0,0.522737]
[1723277143137,0.00831,60961.0,60955.0,0.53339368]
[1723277143344,0.0038353,60961.0,60960.0,0.02]
[1723277143661,0.0038353,60961.0,60960.0,0.03064667]
[1723277145919,0.0038353,60961.0,60960.0,0.03264667]
[1723277146436,0.0038353,60961.0,60960.0,0.03664667]
[1723277146615,0.0038353,60961.0,60960.0,0.03264667]
[1723277146811,0.0038353,60961.0,60960.0,0.03064667]
[1723277147060,0.0038353,60961.0,60960.0,0.03564667]
[1723277148269,0.0038353,60961.0,60960.0,0.03864667]
[1723277148815,0.0858543,60961.0,60960.0,0.03864667]
[1723277151164,0.0858543,60961.0,60960.0,0.02864667]
[1723277151361,0.5274323,60961.0,60960.0,0.008]
[1723277151488,0.5274323,60961.0,60960.0,0.018]
[1723277152100,0.5274323,60961.0,60960.0,0.013]
[1723277152646,0.5274323,60961.0,60960.0,0.01]
[1723277152990,0.5274323,60961.0,60960.0,0.012]
[1723277153219,0.5274323,60961.0,60960.0,0.002]
[1723277153424,0.91229719,60961.0,60960.0,0.001]
[1723277154511,0.91223723,60961.0,60960.0,0.001]
[1723277154670,0.74842231,60961.0,60960.0,0.001]
[1723277156705,0.74842231,60961.0,60960.0,0.0019141]
[1723277158513,0.7144713,60961.0,60960.0,0.0019141]
[1723277158719,1.07620244,60961.0,60960.0,0.0019141]
[1723277158876,0.164101,60938.0,60937.0,0.01]
[1723277159077,0.410252,60938.0,60937.0,0.04065501]
[1723277159276,0.246151,60938.0,60937.0,0.03]
[1723277159710,0.164092,60942.0,60937.0,0.03]
[1723277159912,0.082049,60939.0,60938.0,0.01]
[1723277160113,0.082047,60941.0,60940.0,0.02]
[1723277160316,0.0662,60946.0,60945.0,0.01]
[1723277160564,0.246106,60949.0,60948.0,0.01]
[1723277160735,0.44400896,60949.0,60948.0,0.01]
[1723277160984,0.410177,60949.0,60948.0,0.01]
[1723277161212,0.0473,60954.0,60947.0,0.02]
[1723277161213,0.211359,60954.0,60953.0,0.01]
[1723277161414,0.27993068,60954.0,60953.0,0.01]
[1723277161623,0.03384268,60954.0,60952.0,0.01]
[1723277161767,0.246087,60954.0,60953.0,0.01]
[1723277161970,0.246087,60954.0,60953.0,0.04064498]
[1723277162175,0.082029,60954.0,60953.0,0.04064498]
[1723277162398,0.093029,60954.0,60953.0,0.04164498]
[1723277162552,0.103029,60954.0,60953.0,0.02264498]
[1723277162754,0.256087,60954.0,60953.0,0.02164498]
[1723277162978,0.44399783,60954.0,60953.0,0.02064498]
[1723277163267,0.44899783,60954.0,60953.0,0.01]
[1723277163412,0.12088183,60954.0,60953.0,0.03]
[1723277163637,0.03885283,60954.0,60953.0,0.03]
[1723277163836,0.03885283,60954.0,60953.0,0.1102]
[1723277163837,0.005,60954.0,60953.0,0.1102]
[1723277164031,0.087029,60954.0,60953.0,0.12084498]
[1723277164447,0.084029,60954.0,60953.0,0.12084498]
[1723277164998,0.082029,60954.0,60953.0,0.12084498]
[1723277165204,0.11688164,60954.0,60953.0,0.12084498]
[1723277165503,0.11988164,60954.0,60953.0,0.12084498]
[1723277165820,0.11588164,60954.0,60953.0,0.04064498]
[1723277166020,0.27993964,60954.0,60953.0,0.04364498]
[1723277166246,0.11588164,60954.0,60953.0,0.04364498]
[1723277167202,0.27993964,60954.0,60953.0,0.04364498]
[1723277167404,0.27983878,60954.0,60953.0,0.04364498]
[1723277167807,0.2798419,60954.0,60953.0,0.02364498]
[1723277168015,0.2798419,60954.0,60953.0,0.01364498]
[1723277168016,0.5573999,60954.0,60953.0,0.01364498]
[1723277168220,0.5573999,60954.0,60953.0,0.02364498]
[1723277168423,0.5573999,60954.0,60953.0,0.013]
[1723277168937,0.5573999,60954.0,60953.0,0.011]
[1723277169141,0.55746767,60954.0,60953.0,0.012]
[1723277169388,0.72152567,60954.0,60953.0,0.002]
[1723277169545,0.90834059,60954.0,60953.0,0.002]
[1723277169754,0.98186702,60954.0,60953.0,0.001]
[1723277169956,0.95739859,60954.0,60953.0,0.001]
[1723277170156,0.90834059,60954.0,60953.0,0.001]
[1723277170407,0.55746767,60954.0,60953.0,0.011]
[1723277170650,0.51016767,60954.0,60953.0,0.001]
[1723277170817,0.476345,60954.0,60953.0,0.001]
[1723277171024,0.51020978,60954.0,60953.0,0.01]
[1723277171222,0.24609,60953.0,60952.0,0.01]
[1723277171436,0.27995478,60953.0,60952.0,0.01]
[1723277173012,0.28895478,60953.0,60952.0,0.02264951]
[1723277173362,0.45301478,60953.0,60952.0,0.02264951]
[1723277173566,0.45301478,60953.0,60952.0,0.012]
[1723277174385,0.4530855,60953.0,60952.0,0.012]
[1723277175779,0.7306455,60953.0,60952.0,0.002]
[1723277176202,1.05852042,60953.0,60952.0,0.002]
[1723277176401,1.13342735,60953.0,60952.0,0.002]
[1723277176600,1.20430626,60953.0,60952.0,0.002]
[1723277177834,1.2146115,60953.0,60952.0,0.002]
[1723277178035,1.01586137,60953.0,60952.0,0.002]
[1723277178264,0.96856137,60953.0,60952.0,0.002]
[1723277178438,0.94400805,60953.0,60952.0,0.002]
[1723277178886,0.87780805,60953.0,60952.0,0.002]
[1723277179590,0.80413569,60953.0,60952.0,0.002]
[1723277179783,0.90236137,60953.0,60952.0,0.002]
[1723277179923,0.80413569,60953.0,60952.0,0.002]
[1723277181306,0.77002492,60953.0,60952.0,0.012]
[1723277181443,0.80397717,60953.0,60952.0,0.002]
[1723277182447,0.77002492,60953.0,60952.0,0.002]
[1723277182650,0.80394589,60953.0,60952.0,0.002]
[1723277183237,0.80094589,60953.0,60952.0,0.001]
[1723277183432,0.79259798,60953.0,60948.0,0.0778152]
[1723277183655,0.410177,60949.0,60948.0,0.0778152]
[1723277183945,0.44409797,60949.0,60948.0,0.0778152]
[1723277184377,0.44409797,60949.0,60948.0,0.0878152]
[1723277184594,0.44409797,60949.0,60948.0,0.08848488]
[1723277184816,0.44409797,60949.0,60948.0,0.0778152]
[1723277185695,0.44409797,60949.0,60948.0,0.0888152]
[1723277186134,0.44409797,60949.0,60948.0,0.0778152]
[1723277186348,0.44709797,60949.0,60948.0,0.0778152]
[1723277186555,0.44709797,60949.0,60948.0,0.0878152]
[1723277186759,0.44809797,60949.0,60948.0,0.0778152]
[1723277187205,0.44809797,60949.0,60948.0,0.0878152]
[1723277187410,0.44809797,60949.0,60948.0,0.0778152]
[1723277187988,0.44709797,60949.0,60948.0,0.0778152]
[1723277188472,0.4471691,60949.0,60948.0,0.0009152]
[1723277188673,0.4441691,60949.0,60948.0,0.0009152]
[1723277188882,0.412177,60949.0,60948.0,0.0009152]
[1723277189209,0.444169,60949.0,60948.0,0.0009152]
[1723277189407,0.83395492,60949.0,60948.0,0.0009152]
[1723277189610,1.03186578,60949.0,60948.0,0.0009152]
[1723277189740,0.85695492,60949.0,60948.0,0.0009152]
[1723277189942,0.85795492,60949.0,60948.0,0.0009152]
[1723277190150,0.91188614,60949.0,60948.0,0.0009152]
[1723277190356,0.85800104,60949.0,60948.0,0.0009152]
[1723277190720,0.85700104,60949.0,60948.0,0.0009152]
[1723277191287,0.98280652,60949.0,60948.0,0.0009152]
[1723277191495,0.86000104,60949.0,60948.0,0.0009152]
[1723277191892,0.86309793,60949.0,60948.0,0.0009152]
[1723277192096,0.86009793,60949.0,60948.0,0.0009152]
[1723277192477,0.86309793,60949.0,60948.0,0.0009152]
[1723277193040,0.86009793,60949.0,60948.0,0.0009152]
[1723277193223,0.86309793,60949.0,60948.0,0.0009152]
[1723277195565,0.86323295,60949.0,60948.0,0.0009152]
[1723277198884,0.86328191,60949.0,60948.0,0.0009152]
[1723277199112,0.82896292,60949.0,60948.0,0.0009152]
[1723277199334,0.86328197,60949.0,60948.0,0.0009152]
[1723277200037,0.98722633,60949.0,60948.0,0.0009152]
[1723277200266,1.15129733,60949.0,60948.0,0.0009152]
[1723277200505,1.45635983,60949.0,60948.0,0.0009152]
[1723277200727,1.4569295,60949.0,60948.0,0.0009152]
[1723277201193,1.299167,60949.0,60948.0,0.0009152]
[1723277202217,1.04740604,60949.0,60948.0,0.0009152]
[1723277202401,1.0977786,60949.0,60948.0,0.0029152]
[1723277202537,1.0358786,60949.0,60948.0,0.0029152]
[1723277202734,1.0278786,60949.0,60948.0,0.0019152]
[1723277203627,0.91544776,60949.0,60948.0,0.0029152]
[1723277205643,0.88106292,60949.0,60948.0,0.0029152]
[1723277205809,0.91538778,60949.0,60948.0,0.0029152]
[1723277206227,0.96754613,60949.0,60948.0,0.0029152]
[1723277207234,1.03946561,60949.0,60948.0,0.0029152]
[1723277207483,0.96754613,60949.0,60948.0,0.0029152]
[1723277208656,1.03955722,60949.0,60948.0,0.0029152]
[1723277209188,0.96756884,60949.0,60948.0,0.0029152]
[1723277209549,1.03957997,60949.0,60948.0,0.0029152]
[1723277209760,1.00525383,60949.0,60948.0,0.0029152]
[1723277209946,1.03960078,60949.0,60948.0,0.0029152]
[1723277212739,0.96758965,60949.0,60948.0,0.0029152]
[1723277212932,1.03997185,60949.0,60948.0,0.0029152]
[1723277213313,1.18737523,60949.0,60948.0,0.0029152]
[1723277213879,1.0399736,60949.0,60948.0,0.0029152]
[1723277214896,1.18737523,60949.0,60948.0,0.0029152]
[1723277216321,1.10026238,60949.0,60948.0,0.0029152]
[1723277216526,1.18666979,60949.0,60948.0,0.0029152]
[1723277218165,1.03926816,60949.0,60948.0,0.0029152]
[1723277219974,0.88106292,60949.0,60948.0,0.0029152]
[1723277220167,1.03939868,60949.0,60948.0,0.0029152]
[1723277220613,1.03932577,60949.0,60948.0,0.0029152]
[1723277220948,1.03919498,60949.0,60948.0,0.0029152]
[1723277221781,1.03111868,60949.0,60948.0,0.0029152]
[1723277221982,1.11756126,60949.0,60948.0,0.0029152]
[1723277222640,1.11760037,60949.0,60948.0,0.0029152]
[1723277223458,1.38997137,60949.0,60948.0,0.0029152]
[1723277223605,1.38993456,60949.0,60948.0,0.0029152]
[1723277224013,1.38983962,60949.0,60948.0,0.0029152]
[1723277226259,1.52982536,60949.0,60948.0,0.0029152]
[1723277226459,1.52972596,60949.0,60948.0,0.0029152]
[1723277228443,1.52972596,60949.0,60934.0,0.0815]
[1723277228444,0.574381,60935.0,60934.0,0.0815]
[1723277228674,0.99669037,60935.0,60934.0,0.09142762]
[1723277228890,0.99669037,60935.0,60934.0,0.0815]
[1723277229080,0.99669037,60935.0,60934.0,0.07928104]
[1723277229650,1.00269037,60935.0,60934.0,0.07928104]
[1723277230092,1.00276935,60935.0,60934.0,0.07928104]
[1723277230887,1.00276935,60935.0,60934.0,0.08028104]
[1723277231296,1.00276935,60935.0,60934.0,0.07928104]
[1723277231503,1.00277438,60935.0,60934.0,0.07928104]
[1723277232082,1.00577438,60935.0,60934.0,0.07928104]
[1723277232466,1.01567402,60935.0,60934.0,0.07928104]
[1723277232980,1.01567402,60935.0,60931.0,0.0621]
[1723277232981,0.574455,60927.0,60926.0,0.01]
[1723277233186,0.85088419,60927.0,60926.0,0.01]
[1723277233440,0.97384491,60927.0,60926.0,0.01]
[1723277233642,0.97384491,60927.0,60925.0,0.0009141]
[1723277233643,0.803898,60926.0,60925.0,0.0009141]
[1723277233842,1.10200949,60926.0,60925.0,0.0009141]
[1723277234049,1.24905612,60926.0,60925.0,0.0009141]
[1723277235108,1.24905612,60926.0,60916.0,0.0630141]
[1723277235109,0.689349,60917.0,60916.0,0.0009141]
[1723277235326,1.25396412,60917.0,60916.0,0.0009141]
[1723277235559,1.54112112,60917.0,60916.0,0.0009141]
[1723277235764,1.49456412,60917.0,60916.0,0.0009141]
[1723277235961,1.37976412,60917.0,60916.0,0.0009141]
[1723277236384,1.30784359,60917.0,60916.0,0.0009141]
[1723277236721,1.22184359,60917.0,60916.0,0.0009141]
[1723277236936,1.30774508,60917.0,60916.0,0.0009141]
[1723277237109,1.39348119,60917.0,60916.0,0.0009141]
[1723277237308,1.39348148,60917.0,60916.0,0.0009141]
[1723277237476,1.32174508,60917.0,60916.0,0.0009141]
[1723277237855,1.33574508,60917.0,60916.0,0.0009141]
[1723277237969,1.68664469,60917.0,60916.0,0.0009141]
[1723277238213,1.66987924,60917.0,60916.0,0.0009141]
[1723277238574,1.5182159,60917.0,60916.0,0.0009141]
[1723277238716,1.5322159,60917.0,60916.0,0.0009141]
[1723277239145,1.6963729,60917.0,60916.0,0.0009141]
[1723277239350,1.8605226,60917.0,60916.0,0.0009141]
[1723277240259,1.70224853,60917.0,60916.0,0.0009141]
[1723277240609,1.86056361,60917.0,60916.0,0.0009141]
[1723277240810,1.70224853,60917.0,60916.0,0.0009141]
[1723277241013,1.86064982,60917.0,60916.0,0.0009141]
[1723277241551,1.911131,60917.0,60916.0,0.0009141]
[1723277241700,1.98309307,60917.0,60916.0,0.0009141]
[1723277241901,1.86065062,60917.0,60916.0,0.0009141]
[1723277242738,1.98305005,60917.0,60916.0,0.0009141]
[1723277243514,1.78868911,60917.0,60916.0,0.0009141]
[1723277243957,0.574672,60904.0,60903.0,0.0815]
[1723277244162,1.15583078,60904.0,60903.0,0.0815]
[1723277244337,1.15583078,60904.0,60903.0,0.09149898]
[1723277244540,1.12157892,60904.0,60903.0,0.0815]
[1723277244722,0.95738692,60904.0,60903.0,0.0815]
[1723277244926,0.79573865,60904.0,60903.0,0.1456]
[1723277245139,0.76148692,60904.0,60903.0,0.1456]
[1723277245749,0.574672,60904.0,60903.0,0.1556]
[1723277246110,0.576672,60904.0,60903.0,0.1556]
[1723277246225,0.576672,60904.0,60903.0,0.16566757]
[1723277246425,0.577672,60904.0,60903.0,0.16566757]
[1723277246633,0.577672,60904.0,60903.0,0.15566757]
[1723277247031,0.577672,60904.0,60903.0,0.16566757]
[1723277247469,0.249288,60904.0,60903.0,0.18566757]
[1723277247756,0.41348,60904.0,60903.0,0.17566757]
[1723277248099,0.41348,60904.0,60903.0,0.16566757]
[1723277248456,0.41348,60904.0,60903.0,0.17566757]
[1723277248656,0.41348,60904.0,60903.0,0.18566757]
[1723277249203,0.249288,60904.0,60903.0,0.18566757]
[1723277251226,0.41348,60904.0,60903.0,0.18566757]
[1723277252104,0.249288,60904.0,60903.0,0.18566757]
[1723277253631,0.249288,60904.0,60903.0,0.18658277]
[1723277253830,0.249288,60904.0,60903.0,0.1765152]
[1723277254056,0.003,60904.0,60903.0,0.18662063]
[1723277254278,0.1959,60916.0,60903.0,0.18662063]
[1723277254279,0.000832,60924.0,60913.0,0.01]
[1723277254511,0.000832,60924.0,60903.0,0.18483555]
[1723277254512,0.24622,60921.0,60920.0,0.1751]
[1723277254628,0.082073,60921.0,60920.0,0.1751]
[1723277254827,0.082901,60924.0,60923.0,0.005]
[1723277255033,0.082901,60924.0,60923.0,0.1601]
[1723277255241,0.247039,60924.0,60923.0,0.17016059]
[1723277255442,0.247039,60924.0,60923.0,0.1601]
[1723277255844,0.082901,60924.0,60923.0,0.1601]
[1723277256298,0.247039,60924.0,60923.0,0.1601]
[1723277257435,0.000832,60924.0,60923.0,0.1701]
[1723277257896,0.000832,60924.0,60923.0,0.18114066]
[1723277258095,0.082901,60924.0,60923.0,0.18114066]
[1723277258428,0.247039,60924.0,60923.0,0.18114066]
[1723277258812,0.082901,60924.0,60923.0,0.18114066]
[1723277259197,0.411177,60924.0,60923.0,0.18114066]
[1723277259325,0.411177,60924.0,60923.0,0.16114066]
[1723277259530,0.411177,60924.0,60923.0,0.18114066]
[1723277260963,0.411177,60924.0,60923.0,0.15614066]
[1723277261638,0.411177,60924.0,60923.0,0.16114066]
[1723277262009,0.411177,60924.0,60923.0,0.18114066]
[1723277263418,0.411177,60924.0,60923.0,0.16614066]
[1723277264527,0.411177,60924.0,60923.0,0.16514066]
[1723277264728,0.415177,60924.0,60923.0,0.16514066]
[1723277265106,0.420177,60924.0,60923.0,0.16514066]
[1723277265522,0.77112992,60924.0,60923.0,0.09104066]
[1723277265728,0.77112992,60924.0,60900.0,0.65527974]
[1723277265729,0.41038,60919.0,60918.0,0.0711]
[1723277266183,0.246232,60918.0,60917.0,0.005]
[1723277266517,0.77294628,60918.0,60917.0,0.0814]
[1723277266706,0.59720192,60918.0,60917.0,0.0864]
[1723277266894,0.59720192,60918.0,60917.0,0.0814]
[1723277267488,0.59720192,60918.0,60917.0,0.0844]
[1723277267684,0.410387,60918.0,60917.0,0.0844]
[1723277267890,0.410387,60918.0,60917.0,0.09941143]
[1723277268092,0.410387,60918.0,60917.0,0.09641143]
[1723277268268,0.410387,60918.0,60917.0,0.09741143]
[1723277268789,0.410387,60918.0,60917.0,0.09441143]
[1723277269115,0.410387,60918.0,60917.0,0.09241143]
[1723277269547,0.44501039,60918.0,60917.0,0.09341143]
[1723277271292,0.44501039,60918.0,60917.0,0.09241143]
[1723277271482,0.44501039,60918.0,60917.0,0.09341143]
[1723277271696,0.44501039,60918.0,60917.0,0.09241143]
[1723277272145,0.44498909,60918.0,60917.0,0.09341143]
[1723277272545,0.410387,60918.0,60917.0,0.09341143]
[1723277272765,0.44498775,60918.0,60917.0,0.07841143]
[1723277273587,0.44498775,60918.0,60917.0,0.08341143]
[1723277273954,0.4449747,60918.0,60917.0,0.08341143]
[1723277275569,0.44498293,60918.0,60917.0,0.08341143]
[1723277276681,0.44498293,60918.0,60917.0,0.07841143]
[1723277276885,0.44498293,60918.0,60917.0,0.0734]
[1723277277094,0.91489931,60918.0,60917.0,0.002]
[1723277277303,1.16387261,60918.0,60917.0,0.002]
[1723277277612,1.32793552,60918.0,60917.0,0.002]
[1723277278229,0.75339352,60918.0,60910.0,0.005]
[1723277278428,0.082092,60907.0,60906.0,0.005]
[1723277278657,0.28087193,60907.0,60906.0,0.005]
[1723277278806,0.60923993,60907.0,60906.0,0.005]
[1723277279011,0.574644,60907.0,60906.0,0.005]
[1723277279206,0.60928836,60907.0,60906.0,0.005]
[1723277279617,0.65834194,60907.0,60906.0,0.005]
[1723277279931,0.77803316,60907.0,60906.0,0.005]
[1723277280070,0.80103316,60907.0,60906.0,0.005]
[1723277280524,0.80603316,60907.0,60906.0,0.005]
[1723277281272,0.41048,60904.0,60903.0,0.0009152]
[1723277281384,0.44512436,60904.0,60903.0,0.0009152]
[1723277281785,0.44512436,60904.0,60903.0,0.0059152]
[1723277282028,0.44512436,60904.0,60903.0,0.0009152]
[1723277282234,0.41048,60904.0,60903.0,0.0009152]
[1723277282431,0.44509361,60904.0,60903.0,0.0009152]
[1723277282612,0.60928561,60904.0,60903.0,0.0059152]
[1723277282806,0.60928561,60904.0,60903.0,0.0009152]
[1723277283038,0.61228561,60904.0,60903.0,0.0059152]
[1723277283559,0.61428561,60904.0,60903.0,0.0059152]
[1723277285585,0.80110053,60904.0,60903.0,0.0059152]
[1723277286912,1.01435036,60904.0,60903.0,0.0059152]
[1723277288660,1.0143719,60904.0,60903.0,0.0059152]
[1723277289447,1.15744876,60904.0,60903.0,0.0059152]
[1723277289648,1.25744876,60904.0,60903.0,0.0059152]
[1723277289858,1.13281407,60904.0,60903.0,0.0059152]
[1723277290209,1.20640082,60904.0,60903.0,0.0059152]
[1723277290434,1.20440082,60904.0,60903.0,0.0009152]
[1723277290641,1.21340082,60904.0,60903.0,0.0009152]
[1723277291239,1.20140082,60904.0,60903.0,0.0009152]
[1723277291444,1.57095605,60904.0,60903.0,0.0009152]
[1723277291810,1.65944556,60904.0,60903.0,0.0009152]
[1723277292017,1.65444556,60904.0,60903.0,0.0009152]
[1723277292206,1.32614954,60904.0,60903.0,0.0009152]
[1723277292417,1.11285748,60904.0,60903.0,0.0009152]
[1723277292642,1.03367892,60904.0,60903.0,0.0009152]
[1723277292844,1.15585633,60904.0,60903.0,0.0009152]
[1723277292996,1.14785633,60904.0,60903.0,0.0009152]
[1723277293180,1.20031024,60904.0,60903.0,0.0009152]
[1723277293366,1.13733163,60904.0,60903.0,0.0009152]
[1723277293567,1.08829821,60904.0,60903.0,0.0009152]
[1723277293768,1.17578989,60904.0,60903.0,0.0009152]
[1723277294068,1.20031619,60904.0,60903.0,0.0009152]
[1723277294492,1.12675807,60904.0,60903.0,0.0009152]
[1723277295276,1.20031619,60904.0,60903.0,0.0009152]
[1723277295680,1.12675807,60904.0,60903.0,0.0009152]
[1723277295886,1.14075807,60904.0,60903.0,0.0009152]
[1723277296431,1.18976977,60904.0,60903.0,0.0009152]
[1723277296634,1.14075807,60904.0,60903.0,0.0009152]
[1723277296868,1.21431619,60904.0,60903.0,0.0009152]
[1723277297467,1.14075807,60904.0,60903.0,0.0009152]
[1723277297866,1.30490777,60904.0,60903.0,0.0009152]
[1723277298499,1.35390616,60904.0,60903.0,0.0009152]
[1723277298808,1.45220399,60904.0,60903.0,0.0009152]
[1723277299055,1.28805429,60904.0,60903.0,0.0009152]
[1723277299252,1.28805549,60904.0,60903.0,0.0009152]
[1723277299832,1.2145526,60904.0,60903.0,0.0009152]
[1723277300400,1.3787446,60904.0,60903.0,0.0009152]
[1723277301059,1.45224749,60904.0,60903.0,0.0009152]
[1723277301460,1.3787446,60904.0,60903.0,0.0009152]
[1723277301817,1.54652632,60904.0,60903.0,0.0009152]
[1723277302065,1.62002921,60904.0,60903.0,0.0009152]
[1723277302438,1.58204749,60904.0,60903.0,0.0009152]
[1723277302650,1.50825296,60904.0,60903.0,0.0009152]
[1723277302826,1.58206085,60904.0,60903.0,0.0009152]
[1723277303039,1.5820392,60904.0,60903.0,0.0009152]